bitfinex-derivatives/quotes_ETHF0:USTF0_20250923
["timestamp","ask_amount","ask_price","bid_price","bid_amount"]
[1758627292884,0.99140177,4194.4,4194.3,1.16825]
[1758627295186,0.56266177,4194.4,4194.3,1.16825]
[1758627296086,0.99140177,4194.4,4194.3,1.16825]
[1758627296387,0.56266177,4194.4,4194.3,1.16825]
[1758627298592,0.99140177,4194.4,4194.3,1.16825]
[1758627298889,0.56266177,4194.4,4194.3,1.16825]
[1758627300393,0.99140177,4194.4,4194.3,1.16825]
[1758627300688,1.62720177,4194.4,4194.3,0.5224]
[1758627300891,1.62720177,4194.4,4194.3,0.7624]
[1758627301593,0.97746177,4194.4,4194.3,1.40825]
[1758627302395,1.40620177,4194.4,4194.3,1.40825]
[1758627304994,0.56266177,4194.4,4194.3,1.40825]
[1758627306289,0.56266177,4194.4,4194.3,5.64667]
[1758627306486,0.2098,4195.3,4195.2,1.19155]
[1758627306795,0.2098,4195.6,4195.5,0.8907]
[1758627306995,0.63842,4195.6,4195.5,0.8907]
[1758627307290,1.20464193,4195.6,4195.5,0.8907]
[1758627307490,1.40964193,4195.6,4195.5,0.8907]
[1758627307694,1.40964193,4195.6,4195.5,1.31933]
[1758627307995,1.40964193,4195.6,4195.5,0.8907]
[1758627308992,0.98102193,4195.6,4195.5,1.31933]
[1758627309293,0.56622193,4195.6,4195.5,1.31933]
[1758627309682,1.20464193,4195.6,4195.5,0.8907]
[1758627310396,1.40964193,4195.6,4195.5,0.8907]
[1758627311189,0.98102193,4195.6,4195.5,1.31933]
[1758627311488,1.40964193,4195.6,4195.5,1.31933]
[1758627312693,1.40964193,4195.6,4195.5,0.8907]
[1758627313593,0.98102193,4195.6,4195.5,1.31933]
[1758627314197,1.40964193,4195.6,4195.5,1.31933]
[1758627314495,0.84342,4195.6,4195.5,1.31933]
[1758627315598,0.63842,4195.6,4195.5,1.31933]
[1758627315795,0.6377,4196.1,4196.0,0.6625]
[1758627315997,1.40919886,4196.1,4196.0,0.8693]
[1758627317798,1.63069886,4196.1,4196.0,0.8693]
[1758627318601,0.63142,4195.6,4195.5,0.5445]
[1758627318902,0.63142,4195.6,4195.5,1.098]
[1758627319099,0.84482,4195.6,4195.5,0.864]
[1758627319305,1.06632,4195.6,4195.5,1.104]
[1758627319603,0.84482,4195.6,4195.5,1.104]
[1758627320195,0.2028,4195.6,4195.5,1.53263]
[1758627320402,0.63142,4195.6,4195.5,1.104]
[1758627320903,0.63142,4195.6,4195.5,1.53263]
[1758627321197,0.63138,4195.9,4195.8,0.7362]
[1758627321400,1.19554644,4195.9,4195.8,0.7362]
[1758627322305,1.63044644,4195.9,4195.8,0.7362]
[1758627323605,1.40894644,4195.9,4195.8,0.7362]
[1758627328806,1.63044644,4195.9,4195.8,0.3195]
[1758627329307,1.63044644,4195.9,4195.8,0.5294]
[1758627332207,1.63044644,4195.9,4195.8,0.3195]
[1758627341415,1.19554644,4195.9,4195.8,0.7362]
[1758627341910,1.63044644,4195.9,4195.8,0.5294]
[1758627344014,1.63044644,4195.9,4194.8,0.3317]
[1758627344015,1.08302,4194.9,4194.8,0.3317]
[1758627344204,1.08302,4194.9,4194.0,0.1331]
[1758627344205,0.2215,4194.8,4194.4,0.24]
[1758627344406,0.99290644,4194.7,4194.5,0.5601]
[1758627344606,0.99291644,4194.6,4194.5,0.5601]
[1758627344804,0.99291644,4194.6,4194.5,0.8918]
[1758627346815,0.99291644,4194.6,4194.5,1.32057]
[1758627347411,0.99292644,4194.6,4194.5,1.32057]
[1758627347613,1.07169,4195.4,4194.8,0.4323]
[1758627347814,0.653,4195.1,4195.0,0.5537]
[1758627348020,1.21795638,4195.1,4195.0,0.5537]
[1758627348316,1.21795638,4195.1,4195.0,0.8854]
[1758627349323,1.42645638,4195.1,4195.0,0.8854]
[1758627350721,0.99775638,4195.1,4195.0,0.8854]
[1758627350921,0.78925638,4195.1,4195.0,0.8854]
[1758627351221,1.21795638,4195.1,4195.0,1.31411]
[1758627351610,1.21795638,4195.1,4195.0,0.8854]
[1758627352819,0.78925638,4195.1,4195.0,1.31411]
[1758627353023,0.6543,4195.8,4195.7,0.5431]
[1758627353321,1.64768528,4195.8,4195.7,0.5431]
[1758627355123,1.64768528,4195.8,4195.7,0.3317]
[1758627358336,1.64768528,4195.8,4195.7,0.5431]
[1758627360039,1.42618528,4195.8,4195.7,0.764]
[1758627360235,1.64768528,4195.8,4195.7,0.764]
[1758627363641,1.64768528,4195.8,4195.7,0.5431]
[1758627366537,1.42618528,4195.8,4195.7,0.764]
[1758627366743,0.99338528,4195.8,4195.7,0.764]
[1758627367544,1.21768528,4195.8,4195.7,0.764]
[1758627367949,1.42618528,4195.8,4195.7,0.764]
[1758627370852,1.42618528,4195.8,4195.7,1.19264]
[1758627371151,1.42618528,4195.8,4195.7,0.764]
[1758627373053,1.64768528,4195.8,4195.7,0.764]
[1758627374340,1.42618528,4195.8,4195.7,1.19264]
[1758627374545,0.78905528,4195.8,4195.7,1.19264]
[1758627374848,1.64438528,4195.8,4195.7,0.764]
[1758627375952,1.64438528,4195.8,4195.7,0.3317]
[1758627377150,1.64438528,4195.8,4195.0,0.1214]
[1758627377151,1.0744,4195.1,4195.0,0.3341]
[1758627377349,1.63915528,4195.1,4195.0,0.6874]
[1758627377550,1.41735528,4195.1,4195.0,0.896]
[1758627386859,0.42876,4194.6,4194.5,0.3492]
[1758627387059,1.63921528,4194.6,4194.5,0.3341]
[1758627388064,1.63921528,4194.6,4194.5,0.6874]
[1758627388556,1.63921528,4194.6,4194.5,0.3341]
[1758627391257,1.20151528,4194.6,4194.5,0.896]
[1758627391457,1.41741528,4194.6,4194.5,0.896]
[1758627391656,1.63921528,4194.6,4194.5,0.896]
[1758627392758,1.63921528,4194.6,4194.5,1.32477]
[1758627393063,1.41741528,4194.6,4194.5,1.32477]
[1758627393266,1.41741528,4194.6,4194.5,0.896]
[1758627393463,1.63921528,4194.6,4194.5,0.896]
[1758627393855,1.41741528,4194.6,4194.5,1.32477]
[1758627394065,1.41741528,4194.6,4194.5,0.896]
[1758627395167,0.85271,4194.1,4194.0,0.8972]
[1758627395360,0.2218,4194.7,4194.3,0.42878]
[1758627395561,1.07445,4194.7,4194.6,0.43]
[1758627395762,1.63891512,4194.7,4194.6,0.2214]
[1758627395963,1.63891512,4194.7,4194.6,0.5555]
[1758627397668,0.8527,4194.2,4194.1,1.0041]
[1758627398170,0.4239,4194.2,4194.1,1.43291]
[1758627398360,0.8527,4194.2,4194.1,1.43291]
[1758627399374,0.8527,4194.2,4194.1,1.0041]
[1758627400272,0.8527,4194.2,4194.1,1.43291]
[1758627401074,0.8527,4194.2,4194.1,1.0041]
[1758627401274,1.41745177,4194.2,4194.1,1.43291]
[1758627401775,1.41745177,4194.2,4194.1,1.0041]
[1758627402362,1.41745177,4194.2,4194.1,1.43291]
[1758627402769,1.41745177,4194.2,4194.1,1.0041]
[1758627402966,1.41745177,4194.2,4193.5,0.1319]
[1758627402967,0.42886,4193.6,4193.5,0.1319]
[1758627403168,1.07456,4193.6,4193.5,0.5223]
[1758627403675,1.63921255,4193.6,4193.5,0.8533]
[1758627403978,1.41741255,4193.6,4193.5,1.061]
[1758627404372,1.41741255,4193.6,4193.5,1.48987]
[1758627404576,0.77265255,4193.6,4193.5,1.48987]
[1758627404875,0.42884,4193.8,4193.7,0.7611]
[1758627404876,0.64434,4193.8,4193.7,0.7611]
[1758627405079,1.20893409,4193.8,4193.7,0.7611]
[1758627407079,1.41313409,4193.8,4193.7,0.7611]
[1758627409785,1.41313409,4193.8,4193.7,1.18995]
[1758627410171,1.41313409,4193.8,4193.7,0.7611]
[1758627410371,0.98429409,4193.8,4193.7,1.18995]
[1758627410581,1.41313409,4193.8,4193.7,1.18995]
[1758627412784,1.41313409,4193.8,4193.7,0.7611]
[1758627413088,1.63523409,4193.8,4193.7,0.331]
[1758627413887,0.42886,4193.6,4193.5,0.1319]
[1758627414077,1.07066,4193.6,4193.5,0.4629]
[1758627414276,1.63525409,4193.6,4193.5,0.4629]
[1758627414878,1.07068,4193.4,4193.3,0.331]
[1758627415078,1.07071,4193.1,4193.0,0.331]
[1758627415283,1.63530409,4193.1,4193.0,0.331]
[1758627416575,0.42894,4192.8,4192.7,0.24]
[1758627416778,1.07074,4192.8,4192.7,0.7934]
[1758627418579,1.07074,4192.8,4192.7,0.331]
[1758627418992,1.63483006,4192.8,4192.7,0.331]
[1758627419284,1.07074,4192.8,4192.7,0.5534]
[1758627419473,0.2155,4192.8,4192.7,1.19005]
[1758627419676,0.42894,4192.8,4192.7,0.4301]
[1758627419876,1.07066,4193.6,4193.5,0.3563]
[1758627420085,1.41248755,4193.6,4193.5,0.564]
[1758627420387,1.41248755,4193.6,4193.5,0.895]
[1758627420883,1.63458755,4193.6,4193.5,0.895]
[1758627421091,1.63458755,4193.6,4193.5,0.331]
[1758627422487,1.41248755,4193.6,4193.5,0.895]
[1758627422687,1.63458755,4193.6,4193.5,0.6873]
[1758627423987,0.77942755,4193.6,4193.5,1.32387]
[1758627424286,0.56392755,4193.6,4193.5,1.32387]
[1758627424483,0.42882,4194.0,4193.8,0.42884]
[1758627424688,0.64431,4194.1,4194.0,0.4649]
[1758627424988,1.20851088,4194.1,4194.0,0.895]
[1758627425186,1.41271088,4194.1,4194.0,0.895]
[1758627426088,1.07066,4193.6,4193.5,0.331]
[1758627426283,0.64439,4193.3,4193.2,0.142]
[1758627426483,1.07069,4193.3,4193.2,0.3644]
[1758627426678,0.84859,4193.3,4193.2,0.3644]
[1758627426985,1.07069,4193.3,4193.2,0.473]
[1758627427186,1.63504028,4193.3,4193.2,0.473]
[1758627427488,0.98405028,4193.3,4193.2,0.9031]
[1758627428286,0.56435028,4193.3,4193.2,1.14157999]
[1758627428491,0.42886,4193.6,4193.2,1.14157999]
[1758627428689,0.42886,4193.6,4193.5,0.564]
[1758627428991,0.42886,4193.6,4193.5,0.895]
[1758627429191,1.63514842,4193.6,4193.5,0.6873]
[1758627429486,1.63514842,4193.6,4193.5,0.4649]
[1758627429692,1.63514842,4193.6,4193.5,0.6873]
[1758627429884,1.41304842,4193.6,4193.5,0.6873]
[1758627430092,1.41304842,4193.6,4193.5,0.895]
[1758627430396,0.56448842,4193.6,4193.5,1.32387]
[1758627430582,0.42884,4193.8,4193.6,1.18996]
[1758627430782,0.564728,4193.7,4193.6,1.18996]
[1758627432794,0.993578,4193.7,4193.6,0.7611]
[1758627432995,1.413278,4193.7,4193.6,0.7611]
[1758627434884,0.564728,4193.7,4193.2,0.4435]
[1758627435096,1.06759,4193.3,4193.2,0.7757]
[1758627435296,1.410618,4193.3,4193.2,0.7757]
[1758627435484,0.564728,4193.3,4193.2,1.4131]
[1758627435797,0.42886,4193.6,4193.5,0.869]
[1758627436195,0.99384354,4193.6,4193.5,0.869]
[1758627440496,1.20014354,4193.6,4193.5,0.869]
[1758627442599,1.41814354,4193.6,4193.5,0.869]
[1758627442801,0.42891,4193.1,4193.0,0.56282]
[1758627443099,0.63521,4193.1,4193.0,1.53862]
[1758627446309,1.20172169,4193.1,4193.0,1.53862]
[1758627448107,1.64172169,4193.1,4193.0,0.6612]
[1758627448308,1.64172169,4193.1,4193.0,0.9012]
[1758627448608,1.41972169,4193.1,4193.0,1.1097]
[1758627450014,1.64172169,4193.1,4193.0,1.1097]
[1758627450506,1.64172169,4193.1,4193.0,1.53862]
[1758627450707,1.41972169,4193.1,4193.0,1.53862]
[1758627452407,0.99081169,4193.1,4193.0,1.53862]
[1758627452618,0.77281169,4193.1,4193.0,1.53862]
[1758627453312,1.20172169,4193.1,4193.0,1.29862]
[1758627453513,1.20172169,4193.1,4193.0,1.53862]
[1758627455110,1.20172169,4193.1,4193.0,1.1097]
[1758627455111,1.64172169,4193.1,4193.0,1.1097]
[1758627455306,1.64172169,4193.1,4193.0,0.5498]
[1758627456003,1.64172169,4193.1,4193.0,0.7673]
[1758627456209,1.64172169,4193.1,4193.0,0.9005]
[1758627458216,1.64172169,4193.1,4193.0,0.6605]
[1758627459515,1.64172169,4193.1,4193.0,1.08942]
[1758627459717,1.41972169,4193.1,4193.0,1.29792]
[1758627463320,1.64172169,4193.1,4193.0,0.6605]
[1758627463615,1.64172169,4193.1,4193.0,0.3098]
[1758627463815,1.64172169,4193.1,4193.0,0.73872]
[1758627464119,1.64172169,4193.1,4193.0,1.08022]
[1758627464309,1.41972169,4193.1,4193.0,1.29292]
[1758627465319,1.42008933,4193.1,4193.0,1.29292]
[1758627467311,1.42008933,4193.1,4193.0,0.864]
[1758627467714,1.42008933,4193.1,4193.0,1.29292]
[1758627468617,1.42008933,4193.1,4193.0,0.864]
[1758627469121,1.42008933,4193.1,4193.0,1.29292]
[1758627471720,1.64188933,4193.1,4193.0,0.864]
[1758627471920,1.64188933,4193.1,4193.0,0.6513]
[1758627472218,1.64188933,4193.1,4193.0,0.4408]
[1758627472418,1.64188933,4193.1,4193.0,0.3098]
[1758627473018,1.64217557,4193.1,4193.0,0.3098]
[1758627474020,1.64217557,4193.1,4193.0,0.5203]
[1758627474228,1.64217557,4193.1,4193.0,0.864]
[1758627476323,1.64217557,4193.1,4193.0,0.6513]
[1758627477528,1.64217557,4193.1,4193.0,1.08022]
[1758627481123,0.99146557,4193.1,4193.0,1.29292]
[1758627481427,0.56716557,4193.1,4193.0,1.29292]
[1758627482727,1.21117557,4193.1,4193.0,1.29292]
[1758627484036,1.42207557,4193.1,4193.0,1.29292]
[1758627485735,0.99316557,4193.1,4193.0,1.29292]
[1758627486830,1.64387557,4193.1,4193.0,0.6513]
[1758627487335,0.99316557,4193.1,4193.0,1.29292]
[1758627487835,1.42207557,4193.1,4193.0,1.29292]
[1758627488428,0.56716557,4193.1,4193.0,1.29292]
[1758627488629,0.56716557,4193.1,4193.0,5.53141]
[1758627489131,0.42883,4193.9,4193.8,0.42884]
[1758627489435,0.99606543,4193.9,4193.8,1.18664]
[1758627489938,0.99606543,4193.9,4193.8,0.7578]
[1758627490138,1.21116543,4193.9,4193.8,0.7578]
[1758627490636,1.64386543,4193.9,4193.8,0.5451]
[1758627491232,1.42206543,4193.9,4193.8,0.7578]
[1758627492233,1.64386543,4193.9,4193.8,0.5451]
[1758627493728,0.42887,4193.5,4193.4,0.24]
[1758627493938,0.638,4193.2,4193.1,0.87491]
[1758627494136,0.97863543,4193.2,4193.1,1.08261]
[1758627494337,0.97863543,4193.2,4193.1,1.40021]
[1758627495129,1.40753543,4193.2,4193.1,1.40021]
[1758627496730,0.97863543,4193.2,4193.1,1.40021]
[1758627496933,0.76953543,4193.2,4193.1,1.40021]
[1758627497436,0.56723543,4193.2,4193.1,1.40021]
[1758627499140,0.77133543,4193.2,4193.1,1.16021]
[1758627499334,0.77133543,4193.2,4193.1,1.40021]
[1758627500440,0.56723543,4193.2,4193.1,1.40021]
[1758627500641,0.99613543,4193.2,4193.1,1.40021]
[1758627502748,1.20023543,4193.2,4193.1,1.16021]
[1758627503052,1.62703543,4193.2,4193.1,0.7313]
[1758627503254,1.62703543,4193.2,4193.1,0.7636]
[1758627503454,1.62703543,4193.2,4193.1,0.3176]
[1758627503745,1.62703543,4193.2,4193.1,0.5576]
[1758627504151,1.62703543,4193.2,4193.1,0.3176]
[1758627505853,1.05982,4193.0,4192.9,0.24]
[1758627506053,1.62705543,4193.0,4192.9,0.4579]
[1758627506258,1.62705543,4193.0,4192.9,0.7785]
[1758627506554,1.40515543,4193.0,4192.9,0.7785]
[1758627506755,1.40515543,4193.0,4192.9,0.9811]
[1758627508159,1.62705543,4193.0,4192.9,0.9811]
[1758627508657,1.62705543,4193.0,4192.9,0.7411]
[1758627510356,1.40515543,4193.0,4192.9,0.7411]
[1758627512261,1.62705543,4193.0,4192.9,0.7411]
[1758627514462,0.97623543,4193.0,4192.9,1.17003]
[1758627514664,1.40515543,4193.0,4192.9,1.17003]
[1758627515349,1.40515543,4193.0,4192.9,0.7411]
[1758627516371,1.40515543,4193.0,4192.9,1.17003]
[1758627516663,0.56723543,4193.0,4192.9,1.17003]
[1758627516859,0.42887,4193.5,4193.3,0.42888]
[1758627517167,0.99555431,4193.4,4193.3,1.16998]
[1758627517357,0.99555431,4193.4,4193.3,1.40998]
[1758627519866,0.56667431,4193.4,4193.3,1.40998]
[1758627520568,0.99555431,4193.4,4193.3,1.40998]
[1758627521670,0.56667431,4193.4,4193.3,1.40998]
[1758627523070,0.99555431,4193.4,4193.3,1.40998]
[1758627523865,0.56667431,4193.4,4193.3,1.40998]
[1758627524076,0.56667431,4193.4,4193.3,1.16999]
[1758627524264,0.78277431,4193.4,4193.3,1.40999]
[1758627524464,0.98957431,4193.4,4193.3,1.16999]
[1758627524669,1.64035431,4193.4,4193.3,0.9811]
[1758627525766,1.41845431,4193.4,4193.3,1.40999]
[1758627530473,1.64035431,4193.4,4193.3,1.40999]
[1758627530778,1.64035431,4193.4,4193.3,0.9811]
[1758627531473,1.64035431,4193.4,4193.3,0.3206]
[1758627534383,1.64035431,4193.4,4193.3,0.95909]
[1758627534583,1.41845431,4193.4,4193.3,1.17319]
[1758627534987,1.41845431,4193.4,4193.3,0.7443]
[1758627535381,1.64035431,4193.4,4193.3,0.7443]
[1758627536280,1.41845431,4193.4,4193.3,0.7443]
[1758627537685,1.41845431,4193.4,4193.3,1.17319]
[1758627539689,1.21165431,4193.4,4193.3,1.17319]
[1758627541278,0.56667431,4193.4,4193.3,1.17319]
[1758627541584,0.56667431,4193.4,4193.3,5.41166]
[1758627541890,0.42879,4194.3,4194.1,1.1617]
[1758627542091,0.56713176,4194.2,4194.1,1.1617]
[1758627542480,0.56713176,4194.2,4194.1,5.1617]
[1758627542887,1.07354,4194.8,4194.7,0.3092]
[1758627543081,0.99003172,4194.8,4194.7,0.7329]
[1758627543385,0.56713172,4194.8,4194.7,0.7329]
[1758627543789,1.41877172,4194.8,4194.7,0.3092]
[1758627543991,1.64067172,4194.8,4194.7,0.5188]
[1758627544793,1.41877172,4194.8,4194.7,0.5188]
[1758627544987,1.41877172,4194.8,4194.7,0.7329]
[1758627545892,0.99003172,4194.8,4194.7,0.7329]
[1758627547800,1.41877172,4194.8,4194.7,0.7329]
[1758627550500,1.41877172,4194.8,4194.7,1.16165]
[1758627552898,0.99003172,4194.8,4194.7,1.16165]
[1758627553601,1.41877172,4194.8,4194.7,1.16165]
[1758627556104,1.41877172,4194.8,4194.7,0.7329]
[1758627556890,1.41877172,4194.8,4194.7,1.16165]
[1758627557093,0.56713172,4194.8,4194.7,1.16165]
[1758627557395,0.2053,4195.5,4195.4,0.96958]
[1758627557594,0.63394,4195.8,4195.7,0.75]
[1758627557795,1.19963532,4195.8,4195.7,0.75]
[1758627557995,0.77099532,4195.8,4195.7,1.17865]
[1758627558200,0.56569532,4195.8,4195.7,1.17865]
[1758627558500,1.42362532,4195.8,4195.7,0.75]
[1758627558699,1.64532532,4195.8,4195.7,0.99]
[1758627559107,1.42362532,4195.8,4195.7,0.99]
[1758627559298,1.42362532,4195.8,4195.7,1.41865]
[1758627559602,1.64532532,4195.8,4195.7,0.75]
[1758627562700,1.64532532,4195.8,4195.7,0.3203]
[1758627563504,1.64532532,4195.8,4195.7,0.5409]
[1758627563902,1.42362532,4195.8,4195.7,0.75]
[1758627565607,1.64532532,4195.8,4195.7,0.75]
[1758627566610,1.64532532,4195.8,4195.7,0.3203]
[1758627567493,1.64532532,4195.8,4195.7,0.5409]
[1758627573299,1.42362532,4195.8,4195.7,0.5409]
[1758627573703,1.64532532,4195.8,4195.7,0.5409]
[1758627582010,1.42362532,4195.8,4195.7,0.75]
[1758627582203,0.56569532,4195.8,4195.7,1.17865]
[1758627582804,0.56569532,4195.8,4195.7,5.17865]
[1758627583008,0.56569532,4195.8,4195.7,5.41699]
[1758627583712,0.56569532,4195.8,4195.7,5.17865]
[1758627586209,0.56569532,4195.8,4195.7,1.17865]
[1758627586510,0.56569532,4195.8,4195.7,5.41699]
[1758627586724,0.56569532,4195.8,4195.7,5.17865]
[1758627586908,0.56569532,4195.8,4195.7,1.17865]
[1758627587103,1.19703532,4195.8,4195.7,0.75]
[1758627587310,1.41843532,4195.8,4195.7,0.99]
[1758627588412,1.41843532,4195.8,4195.7,0.75]
[1758627588715,1.64013532,4195.8,4195.7,0.99]
[1758627589214,1.64013532,4195.8,4195.7,0.75]
[1758627589916,1.64013532,4195.8,4195.7,0.3203]
[1758627590108,1.07446,4195.6,4195.5,0.5661]
[1758627590316,1.64015532,4195.6,4195.5,0.5661]
[1758627591913,1.64015532,4195.6,4195.5,0.3261]
[1758627592608,1.64015532,4195.6,4195.5,0.6732]
[1758627593810,1.41845532,4195.6,4195.5,0.8823]
[1758627595413,1.41845532,4195.6,4195.5,1.31097]
[1758627595612,1.41845532,4195.6,4195.5,0.8823]
[1758627595813,1.45994912,4195.6,4195.5,0.8823]
[1758627596517,1.45994912,4195.6,4195.5,1.31097]
[1758627597319,1.46160121,4195.6,4195.5,1.31097]
[1758627598825,1.46160121,4195.6,4195.5,0.8823]
[1758627599422,1.46160121,4195.6,4195.5,1.31097]
[1758627599625,1.68330121,4195.6,4195.5,0.8823]
[1758627600315,1.46160121,4195.6,4195.5,0.8823]
[1758627600518,1.46160121,4195.6,4195.5,1.31097]
[1758627600519,1.03294121,4195.6,4195.5,1.31097]
[1758627600725,1.46160121,4195.6,4195.5,1.31097]
[1758627601022,1.46160121,4195.6,4195.5,0.8823]
[1758627601223,1.46160121,4195.6,4195.5,1.31097]
[1758627601726,1.46160121,4195.6,4195.5,0.8823]
[1758627602325,1.46160121,4195.6,4195.5,1.31097]
[1758627602826,1.46160121,4195.6,4195.5,0.8823]
[1758627603624,1.46160121,4195.6,4195.5,1.31097]
[1758627604329,1.68330121,4195.6,4195.5,0.8823]
[1758627604833,1.46160121,4195.6,4195.5,1.31097]
[1758627607127,1.46160121,4195.6,4195.5,0.8823]
[1758627607428,1.68330121,4195.6,4195.5,0.8823]
[1758627608017,1.68330121,4195.6,4195.5,0.4518]
[1758627608223,1.68330121,4195.6,4195.5,0.88047]
[1758627608426,1.68330121,4195.6,4195.5,1.10187]
[1758627608625,1.68330121,4195.6,4195.5,0.6732]
[1758627609130,1.68330121,4195.6,4195.5,1.10187]
[1758627609531,1.68330121,4195.6,4195.5,0.6732]
[1758627610729,1.68330121,4195.6,4195.5,1.10187]
[1758627611432,1.68330121,4195.6,4195.5,0.6732]
[1758627613835,1.68330121,4195.6,4195.5,1.10187]
[1758627615525,1.46160121,4195.6,4195.5,1.32047]
[1758627617134,1.46160121,4195.6,4195.5,0.8918]
[1758627617837,1.68380121,4195.6,4195.5,0.8918]
[1758627618034,1.68380121,4195.6,4195.5,0.6732]
[1758627618336,1.68380121,4195.6,4195.5,1.10187]
[1758627618733,1.46160121,4195.6,4195.5,1.10187]
[1758627618940,1.46160121,4195.6,4195.5,1.30967]
[1758627623643,1.46160121,4195.6,4195.5,0.881]
[1758627624146,1.46160121,4195.6,4195.5,1.30967]
[1758627626947,1.03294121,4195.6,4195.5,1.30967]
[1758627627745,1.46160121,4195.6,4195.5,1.30967]
[1758627637754,1.03294121,4195.6,4195.5,1.30967]
[1758627637961,0.60884121,4195.6,4195.5,5.54802]
[1758627638260,0.23034741,4195.6,4195.5,5.54802]
[1758627639356,0.23034741,4195.6,4195.5,1.54802]
[1758627639851,0.23034741,4195.6,4195.5,1.30967]
[1758627641260,0.68858009,4196.3,4196.2,0.8426]
[1758627641558,1.22498009,4196.3,4196.2,1.1585]
[1758627643060,0.79639009,4196.3,4196.2,1.1585]
[1758627650064,1.36290841,4196.3,4196.2,1.1585]
[1758627662564,1.36290841,4196.3,4196.2,1.3985]
[1758627662872,0.56651832,4196.3,4196.2,1.3985]
[1758627663872,0.76871832,4196.3,4196.2,1.3985]
[1758627664266,0.56651832,4196.3,4196.2,1.3985]
[1758627665969,0.76871832,4196.3,4196.2,1.3985]
[1758627666173,1.29281832,4196.3,4196.2,1.3985]
[1758627667077,1.29281832,4196.3,4195.7,1.17565]
[1758627667078,0.7263,4195.8,4195.7,1.17565]
[1758627667275,1.29281832,4195.8,4195.7,1.41565]
[1758627667574,0.56651832,4195.8,4195.7,1.41565]
[1758627667774,0.2022,4196.0,4195.9,1.17563]
[1758627667974,0.56725384,4196.0,4195.9,0.2023]
[1758627668271,0.42857,4196.5,4196.4,1.17556]
[1758627668473,1.15487,4196.5,4196.4,0.987]
[1758627668671,1.72213637,4196.5,4196.4,1.41558]
[1758627669781,1.29356637,4196.5,4196.4,1.41558]
[1758627670074,0.56726637,4196.5,4196.4,1.41558]
[1758627670968,0.56726637,4196.5,4196.4,5.65388]
[1758627671364,0.5173,4197.1,4197.0,0.98291]
[1758627671569,0.04148069,4197.3,4197.2,0.85369]
[1758627671769,0.608536,4197.3,4197.2,1.17549]
[1758627671970,0.810736,4197.3,4197.2,1.17549]
[1758627672675,0.608536,4197.3,4197.2,1.17549]
[1758627675370,0.56705531,4197.3,4197.2,1.17549]
[1758627676875,0.78435531,4197.3,4197.2,1.17549]
[1758627677078,1.10885531,4197.3,4197.2,1.17549]
[1758627680490,1.75633531,4197.3,4197.2,1.41449]
[1758627683093,1.75633531,4197.3,4197.2,1.17549]
[1758627683390,1.75633531,4197.3,4197.2,1.41449]
[1758627686197,0.7608,4197.1,4197.0,0.5251]
[1758627686496,0.5418,4196.6,4196.5,0.8759]
[1758627686795,0.2173,4196.6,4196.5,1.54347]
[1758627687197,1.18927,4197.4,4197.3,0.4431]
[1758627687389,1.75433285,4197.4,4197.3,0.7467]
[1758627689096,1.75433285,4197.4,4197.3,0.5251]
[1758627689298,0.8648,4197.1,4197.0,0.7641]
[1758627689492,1.75436285,4197.1,4197.0,0.7641]
[1758627689799,1.75436285,4197.1,4197.0,0.5426]
[1758627690293,1.75436285,4197.1,4197.0,0.7641]
[1758627690494,1.18933,4196.9,4196.8,0.7641]
[1758627690798,1.75439285,4196.9,4196.8,0.7641]
[1758627692397,1.75439285,4196.9,4196.8,1.19264]
[1758627693099,1.75439285,4196.9,4196.8,1.41424]
[1758627694903,1.75439285,4196.9,4196.8,0.5251]
[1758627695199,1.1894,4196.3,4196.2,1.17529]
[1758627695401,1.1894,4196.3,4196.2,1.41429]
[1758627696302,1.1894,4196.3,4196.2,0.7467]
[1758627696600,1.75532863,4196.3,4196.2,0.9857]
[1758627697387,1.75532863,4196.3,4196.2,0.4431]
[1758627697595,1.18942,4196.0,4195.9,0.4431]
[1758627697791,1.75534863,4196.0,4195.9,0.6821]
[1758627698196,1.32672863,4196.0,4195.9,1.41433]
[1758627698397,0.56592863,4196.0,4195.9,1.41433]
[1758627698698,1.32689249,4196.6,4196.5,0.5251]
[1758627698897,1.75545249,4196.6,4196.5,0.5251]
[1758627699093,0.64591,4196.1,4196.0,0.8697]
[1758627699300,1.75550249,4196.1,4196.0,1.29832]
[1758627701096,1.75550249,4196.1,4196.0,1.53732]
[1758627701402,1.75550249,4196.1,4196.0,1.1087]
[1758627701698,1.75550249,4196.1,4196.0,0.7467]
[1758627701901,1.75550249,4196.1,4196.0,0.7641]
[1758627702194,0.78339249,4196.1,4196.0,1.53732]
[1758627702603,1.21200249,4196.1,4196.0,1.53732]
[1758627703100,0.78339249,4196.1,4196.0,1.53732]
[1758627703498,1.21200249,4196.1,4196.0,1.53732]
[1758627703999,1.51630249,4196.1,4196.0,1.53732]
[1758627705096,1.73600249,4196.1,4196.0,1.53732]
[1758627706502,1.30739249,4196.1,4196.0,1.53732]
[1758627707505,1.73600249,4196.1,4196.0,1.53732]
[1758627709406,1.30739249,4196.1,4196.0,1.53732]
[1758627709701,1.73600249,4196.1,4196.0,1.1087]
[1758627709907,1.73600249,4196.1,4196.0,0.9857]
[1758627713398,0.95265,4195.7,4195.6,0.3116]
[1758627713607,1.74251749,4195.7,4195.6,0.3116]
[1758627713909,1.74251749,4195.7,4195.6,0.7678]
[1758627714103,1.74251749,4195.7,4195.6,0.984]
[1758627715004,1.74251749,4195.7,4195.6,0.7678]
[1758627716511,1.74251749,4195.7,4195.6,0.5288]
[1758627716712,1.74251749,4195.7,4195.6,0.7678]
[1758627720707,1.74251749,4195.7,4195.6,0.239]
[1758627720912,1.74251749,4195.7,4195.6,0.3116]
[1758627721113,0.42869,4195.3,4195.2,0.4287]
[1758627721308,0.95729,4195.3,4195.2,1.25145]
[1758627721613,0.95729,4195.3,4195.2,1.56305]
[1758627721815,0.95729,4195.3,4195.2,1.3247]
[1758627722800,1.17699,4195.3,4195.2,1.4127]
[1758627723302,0.5286,4195.6,4195.5,0.42866]